Cogmind - Beta 13 @@@ ROGUE MODE // 2024.04.11 @ 17:29:44 Player: JackZewap Result: Self-destructed Performance ------------- Evolutions (1) 500 Regions Visited (2) 400 Robots Destroyed (12) 60 Value Destroyed (230) 230 Prototype IDs (0) 0 Alien Tech Used (0) 0 Bonus (0) 0 TOTAL SCORE: 1190 Bonus ------- None Cogmind --------- Core Integrity 315/400 Matter 260/300 Energy 15/160 System Corruption 0% Temperature Cool (0) Movement Flying (115) Ox1 Location -9/Materials Parts ------- > --- POWER (1) -------- Light Nuclear Core > --- PROPULSION (2) --- VTOL Module > --- UTILITY (4) ------ Cooling System Small Storage Unit Weight Redist. System ECM Suite > --- WEAPON (2) ------- (None) > --- INVENTORY (8) ---- Flight Unit Small Laser Particle Gun Particle Gun Assault Rifle Peak State ------------ > --- POWER ------------ Light Nuclear Core > --- PROPULSION ------- Flight Unit Flight Unit > --- UTILITY ---------- Cooling System Small Storage Unit ECM Suite > --- WEAPON ----------- Particle Gun Particle Gun > --- INVENTORY -------- Flight Unit Small Laser Assault Rifle [Rating: 13] Favorites ----------- Power Light Nuclear Core Engine Ion Engine Power Core Light Nuclear Core Propulsion Flight Unit Wheel Wheel Flight Unit Flight Unit Utility Small Storage Unit Device Cooling System Storage Small Storage Unit Weapon Particle Gun Energy Gun Particle Gun Ballistic Gun Light Assault Rifle Build | -11 -10 -9 ------- Run | Yrd Mat Mat Slots Evolved 2 | . . 2 Power . | . . . Propulsion . | . . . Utility 2 | . . 2 Weapon . | . . . Parts Attached 23 | 6 12 5 Power 4 | 1 2 1 Engine 2 | 1 1 . Core 2 | . 1 1 Reactor . | . . . Propulsion 7 | 2 3 2 Treads . | . . . Leg . | . . . Wheel 2 | 2 . . Hover . | . . . Flight 5 | . 3 2 Utility 4 | 1 1 2 Device 3 | . 1 2 Storage 1 | 1 . . Processor . | . . . Hackware . | . . . Protection . | . . . Artifact . | . . . Weapon 8 | 2 6 . Energy Gun 3 | 1 2 . Energy Cannon . | . . . Ballistic Gun 5 | 1 4 . Ballistic Cannon . | . . . Launcher . | . . . Special Weapon . | . . . Impact Weapon . | . . . Slashing Weapon . | . . . Piercing Weapon . | . . . Special Melee Weapon . | . . . Unidentified Prototypes . | . . . Parts Lost 2 | . . 2 Power . | . . . Propulsion 2 | . . 2 Utility . | . . . Weapon . | . . . Highest Loss Streak 2 | . . 2 To Critical Strikes . | . . . Average Slot Usage (%) 76 | . 81 67 Engine 2 | . 3 . Core 4 | . 5 3 Wheel 10 | . 17 . Flight 14 | . 9 21 Device 7 | . 2 16 Storage 12 | . 14 11 Energy Gun 11 | . 8 15 Ballistic Gun 11 | . 18 . Naked Turns . | . . . Heaviest Build 20 | 13 13 20 Greatest Support 20 | 20 20 14 Greatest Overweight (x) 2 | . 2 2 Average Overweight (x) . | . . . Largest Inventory Capacity 8 | 8 8 8 Average Capacity 7 | 5 8 8 Most Carried 8 | . 8 8 Average Carried 4 | . 4 5 Final Capacity 8 | 8 8 8 Final Carried 8 | . 8 5 Class Distribution -------------------- 89% | Mutant 10% | Scavenger-Mutant Dominant Class ---------------- Mutant | -10/Materials Mutant | -9/Materials Resources | -11 -10 -9 ----------- Run | Yrd Mat Mat Matter Collected 463 | 237 196 30 Remotely . | . . . Salvage Created 344 | . 267 77 Parts 24 | . 17 7 Haulers Intercepted 1 | . 1 . Recyclers Shooed . | . . . Parts Field Recycled . | . . . Retrieved Matter . | . . . Parts Self-Destructed . | . . . Prevented . | . . . Kills | -11 -10 -9 ------- Run | Yrd Mat Mat Combat Hostiles Destroyed 10 | . 8 2 Guns 10 | . 8 2 Classes Destroyed 5 | . 4 1 Hauler 1 | . 1 . Recycler 1 | . 1 . Swarmer 6 | . 6 . Grunt 3 | . 2 1 Duelist 1 | . . 1 Best Kill Streak 6 | . 6 2 Combat Bots Only 3 | . 3 2 Max Kills in Single Turn 1 | . 1 1 Gunslinging . | . . . Exploded . | . . . Melee . | . . . Uniques/NPCs Destroyed . | . . . Combat | -11 -10 -9 -------- Run | Yrd Mat Mat Hostile Shots Fired 60 | . 31 29 Missed 22 | . 8 14 Damage Taken 400 | . 220 180 Core 141 | . 56 85 Absorbed by Shields . | . . . Core Remaining (%) 88 | 100 77 . Volleys Fired 36 | . 33 3 Largest 2 | . 2 2 Hottest 130 | . 60 130 Shots Fired 72 | . 66 6 Gun 72 | . 66 6 Cannon . | . . . Launcher . | . . . Special . | . . . Kinetic 49 | . 49 . Thermal 23 | . 17 6 Explosive . | . . . Electromagnetic . | . . . Robot Hit Streak 5 | . 5 5 Robot Miss Streak 4 | . 4 1 Penetration Max . | . . . Secondary Targets . | . . . Shots Hit Robots 37 | . 32 5 Core Hits 21 | . 17 4 Critical Kills . | . . . Critical Parts Destroyed 1 | . 1 . Critical Strikes 1 | . 1 . Destroy 1 | . 1 . Melee Attacks . | . . . Impact . | . . . Slashing . | . . . Piercing . | . . . Sneak Attacks . | . . . Combat Hostiles . | . . . Follow-up Attacks . | . . . Damage Inflicted 395 | . 319 76 Guns 395 | . 319 76 Cannons . | . . . Explosions . | . . . Melee . | . . . Ramming . | . . . Kinetic 221 | . 221 . Thermal 174 | . 98 76 Explosive . | . . . Electromagnetic . | . . . Impact . | . . . Slashing . | . . . Piercing . | . . . Highest Corruption 1 | . 1 . Average Corruption 1 | . 1 . Corruption Purged . | . . . Corruption Blocked . | . . . Overload Shots . | . . . Overflow Damage . | . . . Projectiles . | . . . Explosions . | . . . Melee . | . . . Knockbacks . | . . . Impact . | . . . Kinetic . | . . . Secondary . | . . . Self-Inflicted Damage . | . . . Shots . | . . . Rammed . | . . . Targets Rammed . | . . . Kicked . | . . . Crushed . | . . . Highest Temperature 66 | . 66 . Average Temperature 24 | . 24 . Received Heat Transfer 147 | . 66 81 Siege Activations . | . . . Robots Corrupted . | . . . Combat Hostiles . | . . . Parts Fried . | . . . Impact Corruptions . | . . . Robots Melted . | . . . Combat Hostiles . | . . . Parts Melted . | . . . Heat Transferred 410 | . 225 185 Parts Sabotaged . | . . . Parts Stolen . | . . . Parts Stripped . | . . . Power Chain Reactions . | . . . Alert | -11 -10 -9 ------- Run | Yrd Mat Mat Peak Influence 284 | . 284 103 Initial 35 | . . 35 Average 134 | . 207 39 Maximum Alert Level 1 | . 1 . Low Security (%) 72 | 100 52 100 Level 1 27 | . 47 . Level 2 . | . . . Level 3 . | . . . Level 4 . | . . . Level 5 . | . . . High Security . | . . . Max Security . | . . . Squads Dispatched 5 | . 1 4 Investigation 3 | . 1 2 Extermination . | . . . Reinforcement 2 | . . 2 Assault . | . . . Garrison . | . . . Intercept . | . . . Searches Triggered . | . . . Construction Impeded . | . . . Haulers Reinforced . | . . . Active Scanning Responses . | . . . Cargo Convoy Interrupts . | . . . Stealth | -11 -10 -9 --------- Run | Yrd Mat Mat Distress Signals 1 | . 1 . Communications Jammed . | . . . Distress Signals . | . . . Times Spotted 31 | . 10 21 Peak Tracking Total 12 | . 4 12 Tactical Retreats 2 | . . 2 Traps | -11 -10 -9 ------- Run | Yrd Mat Mat Traps Triggered 1 | . 1 . Indirectly . | . . . Trap Hack Attempts . | . . . Triggered . | . . . Disarmed . | . . . Reprogrammed . | . . . Reused . | . . . Traps Extracted . | . . . Installed . | . . . Triggered . | . . . Machines | -11 -10 -9 ---------- Run | Yrd Mat Mat Machines Disabled . | . . . Max in Single Turn . | . . . Machines Repaired . | . . . Machines Dismantled . | . . . Machines Sabotaged . | . . . Overloaded Fab Kills . | . . . Hacking | -11 -10 -9 --------- Run | Yrd Mat Mat Machines Accessed 8 | . 5 3 Terminals 7 | . 4 3 Fabricators . | . . . Repair Stations 1 | . 1 . Recycling Units . | . . . Scanalyzers . | . . . Garrison Access . | . . . Total Hacks 25 | . 12 13 Successful 17 | . 10 7 Failed 8 | . 2 6 Catastrophic 2 | . . 2 Database Lockouts . | . . . Manual 13 | . 4 9 Terminals 23 | . 10 13 Fabricators . | . . . Repair Stations 2 | . 2 . Recycling Units . | . . . Scanalyzers . | . . . Garrison Access . | . . . Terminal Hacks 11 | . 6 5 Robot Analysis 1 | . . 1 Emergency Access Points 3 | . 2 1 Alert Level 1 | . . 1 Unreport Threat 1 | . . 1 Locate Traps 2 | . 2 . Dispatch Records 1 | . . 1 Hauler Manifests 1 | . 1 . Registered Components 1 | . 1 . Fabricator Hacks . | . . . Repair Station Hacks . | . . . Recycling Unit Hacks . | . . . Scanalyzer . | . . . Garrison Access Hacks . | . . . Unauthorized Hacks 6 | . 4 2 Terminals 6 | . 4 2 Track 2 | . 1 1 Botnet 4 | . 3 1 Fabricators . | . . . Repair Stations . | . . . Recycling Units . | . . . Scanalyzers . | . . . Garrison Access . | . . . Data Cores Recovered . | . . . Used . | . . . Hacking Detections 8 | . 5 3 Full Trace Events 3 | . 1 2 Feedback Events . | . . . Feedback Blocked . | . . . Robot Schematics Acquired . | . . . Robots Built . | . . . Authchips . | . . . Time . | . . . Total Robot Build Rating . | . . . Part Schematics Acquired . | . . . Parts Built . | . . . Authchips . | . . . Time . | . . . Total Part Build Rating . | . . . Parts Repaired . | . . . Time . | . . . Parts Recycled . | . . . Recycled Matter . | . . . Retrieved Matter . | . . . Retrieved Components . | . . . Parts Scanalyzed . | . . . Part Schematics Acquired . | . . . Parts Damaged . | . . . Bothacking | -11 -10 -9 ------------ Run | Yrd Mat Mat Used RIF Installer . | . . . Robots Hacked . | . . . Non-combat . | . . . Combat . | . . . Robot Hacks Applied . | . . . Relay Couplers Released . | . . . Fabnet Peak Effective % . | . . . Robots Rewired . | . . . Allies Hacked . | . . . Hacks Repelled . | . . . Allies | -11 -10 -9 -------- Run | Yrd Mat Mat Total Allies . | . . . Largest Group . | . . . Highest-Rated Group . | . . . Highest-Rated Ally . | . . . Total Orders . | . . . Ally Attacks . | . . . Total Damage . | . . . Kills . | . . . Allies Corrupted . | . . . Allies Melted . | . . . Intel | -11 -10 -9 ------- Run | Yrd Mat Mat Robot Analysis Total 1 | . . 1 Derelict Logs Recovered . | . . . Drone Launches . | . . . Drone Recoveries . | . . . Exploration | -11 -10 -9 ------------- Run | Yrd Mat Mat Turns Passed 689 | 46 400 243 Spaces Moved 620 | 47 333 240 Core 2 | 2 . . Treads . | . . . Legs . | . . . Wheels 234 | 45 189 . Hover . | . . . Flight 384 | . 144 240 Fastest Speed 34 | 50 37 34 Average Speed 83 | 78 82 86 Slowest Speed 200 | 80 200 197 Overloaded Moves . | . . . Propulsion Burnouts . | . . . Robots Hopped 2 | . . 2 Cave-ins Triggered . | . . . Exploration Rate (%) 25 | 4 50 23 Regions Visited 2 Branch Regions . Pre-discovered Areas . | . . . Known Exits Taken . | . . . Unknown Exits Taken 2 | 1 1 . Scrap Searched . | . . . Spaces Dug . | . . . Terrain Destroyed . | . . . Melee . | . . . Projectile . | . . . AOE . | . . . Terrain Rammed . | . . . Walls Destroyed . | . . . Machines Disabled . | . . . Actions | -11 -10 -9 --------- Run | Yrd Mat Mat Total 721 | 52 399 270 Wait 27 | . 11 16 Move 614 | 46 332 236 Hop 2 | . . 2 Pick Up 6 | . 5 1 Fast Attach 11 | 6 3 2 Attach 5 | . 2 3 Detach 6 | . 3 3 Swap 7 | . 7 . Drop 7 | . 3 4 Fire 36 | . 33 3 Melee . | . . . Ram . | . . . Kick . | . . . Crush . | . . . Escape Stasis . | . . . Rewire . | . . . Trap . | . . . Miscellaneous . | . . . Route ------- -11/Scrapyard -10/Materials (discovered 2 exits: *Mat / [*Min]) -9/Materials History --------- Turn | Location | Event 14 | -11/Scrapyard | Discovered new exit (range 16) 47 | -11/Scrapyard | Entered Materials 405 | -10/Materials | Discovered new exit (range 4) 412 | -10/Materials | Discovered new exit (range 16) 447 | -10/Materials | Entered another Materials area 447 | -9/Materials | Evolved 2 slots: Utility x2 664 | -9/Materials | Build established: Mutant 690 | -9/Materials | Self-destructed Last Messages --------------- Current Alert Level: Low Security >>Enumerate(Squads) Retrieving dispatch records... Found 29 active squads: 10x Security 5x Surveillance 4x Patrol 6x Transport 2x Investigation 2x Reinforcement 00636_ Atomic Centrifuge disabled. 00643_ Acquired Weight Redist. System. 00644_ Critical hit (Burn: +37). 00661_ K-01 Serf cleans the Processing Tank. 00664_ Flight Unit destroyed. 00665_ K-01 Serf cleans the Processing Tank. 00671_ Acquired VTOL Module. 00686_ K-01 Serf collects debris. 00687_ T-07 Excavator is excavating. 00689_ Flight Unit destroyed. Map ----- +----------------------------------------------------+ | ?????????????????????????????????????????????????? | | ?????????????????????????????????????????????????? | | ?????????????????????????????????????????????????? | | ?????????????????????????????????????????????????? | | ?????????????????????????????????????????????????? | | ?????????????????????????????????????????????????? | | ?????????????????????????????????????????????????? | | ???????????????????????????????????????????#####?? | | ???????????????????????????????????????????# #?? | | ???????????????????????????????????????????# #?? | | ???????????????????????????????????????????# #?? | | ???????????????????????????????????????????# #?? | | ???????????????????????????????????????????# ### | | ???????????????????????????????????????????# ## | | ??????????????????????????????????????????## ## | | ??????????????????????????????????????????# # | | ????????????????????????##????????? ????# # | | ???????????????????????? +???????? ????# =%* + | | ???????????????????????? #???????? ????# ! # | | ???????????????????????? #???????? ????# ![* # | | ???????????????????????? #???????? ????###%### | | ????????????????????????# #???????? ??????#=#### | | ????????????????????????#r#???????? ??????# ## | | ????????????????????????#g#???????? ??????# ## | | ????????????????????????# #???????##+##????## ## | | ????????????????????????#@######### ###### # | | ????????????????????????# o T + | | ????????????????????????#t######### ! ###### # | | ????????????????????????# #???????## ##????## ## ! | | ????????????????????????###????????# #??????# ## | | ???????????? ??????????????????????# #??????# ## | | ???????????? ??????????????????????# #??????# #### | | ???????????? ?????????????????????# #??????# #### | | ??????????+##/????##+##????????????# #??????+ | | ?????????# ????# ###########??# #??????# | | ?????????? ##### # #??# ######## | | ??????????? T # #??# | | ????????##### # #??# ########### | | ????????? # # ! #??# #?????????# | | ?????????? # #??# #?????????# | | ?????????? ! """ # #??# #?####???## | | ???????????? """ / #??# #?# ???# | | ?????????????# """ # #??# #### ##### | | ?????????????# """ ########+##??# | | ?????????????# """ #??# #### ######## | | ?????????????# ####/####+#??????? | | ?????????????# # #??????? | | ?????????????# ##+######### # #??????? | | ?????????????# # #???# # #??????? | | ?????????????# # "" #???# # #??????? | +----------------------------------------------------+ Best States ------------- Heat Dissipation 50 Energy Generation 14 Energy Capacity 250 Matter Stores 300 Matter Capacity 300 Sight Range 16 Terrain Scan Density 10 ECM Strength 1 Additional Mass Support 6 Evasion (%) 63 Item Schematics ----------------- None Robot Schematics ------------------ None Fabricated ------------ Nothing Alien Tech Used ----------------- None Achievements -------------- None Challenges ------------ None Game ------ Seed DecoderUltimateThermoblaster Manual? 0 Play Time 00:11:44 Cumulative 40.5 hours Start 2024.04.11 @ 17:21:21 End 2024.04.11 @ 17:29:44 Sessions 1 Manual Loads 0 Difficulty Rogue Special Mode None Game No. 46 Rogue 40 Adventurer 6 Explorer 0 Win Type - Total 0 Types 0/0/0/0/0/0/0/0/0 Lore% 22 Gallery% 37 Achievement% 30 Wizard Run 0 Options --------- Layout 0 ASCII 0 Keyboard 1 Movement Numpad Keybinds 0 Fullscreen 0 Font 12/Smallcaps Map View 76x50 Zoom Use 0% Tactical HUD 1 Map Filters NONE Filters NONE Steam 1 RUN: de743e64-276d-4ba1-be2a-2060623d3a8f